[Event "FTX Crypto Cup MCCT 2022"]
[Site "Miami"]
[Date "2022.08.11"]
[Round "5.3"]
[White "Le, Quang Liem"]
[Black "Praggnanandhaa R"]
[Result "1-0"]
[ECO "D26"]
[WhiteElo "2722"]
[BlackElo "2648"]
[Annotator "TA"]
[PlyCount "71"]
[EventDate "2022.08.10"]
[EventType "tourn"]
[EventCountry "USA"]
[SourceTitle "playchess.com"]
[Source "ChessBase"]
[SourceQuality "1"]
[TimeControl "900+10"]

{[%evp 11,71,34,28,16,13,0,0,-5,0,-12,0,0,0,14,0,0,4,0,0,-4,0,-27,-27,-32,-35,-33,0,-28,7,8,5,0,45,43,53,7,42,67,106,111,137,132,126,136,132,112,114,92,129,88,130,127,181,169,168,163,163,163,195,200,218,218]} 1. d4 {[%emt 0:00:00]} d5 {[%emt 0:00:00]} 2. Nf3 {[%emt 0:00:03]} Nf6 {[%emt 0:00:07]} 3. c4 {[%emt 0:00:06]} dxc4 {[%emt 0:00:10]} 4. e3 {[%emt 0:00:02]} e6 {[%emt 0:00:01]} 5. Bxc4 {[%emt 0:00:01]} c5 {[%emt 0:00:01]} 6. O-O {[%emt 0:00:01]} Nc6 {[%emt 0:00:00]} 7. Re1 $5 {[%emt 0:00:36][%mdl 4] Exploring less charted territory. D26: Queen's Gambit Accepted: 4 e3 e6 5 Bxc5 c5 sidelines.} a6 {[%emt 0:00:29] [#]} 8. h3 $146 {[%emt 0:00:45]} ({Predecessor:} 8. Nc3 Be7 9. dxc5 Qxd1 10. Rxd1 Bxc5 11. Bd2 Bd7 12. Rac1 O-O 13. Be2 Ba7 14. Ng5 Ne7 15. Nce4 Nxe4 16. Nxe4 Bc6 17. Nd6 Rfd8 18. Nxb7 Bxb7 {½-½ (31) Grischuk,A (2764)-Nakamura,H (2736) Berlin 2022}) 8... b5 {[%emt 0:02:54]} 9. Bf1 {[%emt 0:00:05] The position is equal.} cxd4 {[%emt 0:00:38]} 10. exd4 {[%emt 0:00:09]} Be7 {[%emt 0:00:03]} 11. a4 {[%emt 0:01:43]} b4 {[%emt 0:00:06]} 12. Be3 {[%emt 0:00:05]} Bb7 {[%emt 0:00:47]} 13. Nbd2 {[%emt 0:00:03]} Na5 {[%emt 0:00:15]} 14. Rc1 {[%emt 0:00:39]} O-O {[%emt 0:00:12]} 15. Ne5 {[%emt 0:00:04]} Rc8 {[%emt 0:00:57]} (15... Nd5 {seems wilder.} 16. Bd3 Nxe3 17. fxe3 Bh4) 16. Ndc4 {[%emt 0:01:19]} Nxc4 {[%emt 0:02:20]} 17. Bxc4 {[%emt 0:00:04]} Nd5 {[%emt 0:00:58][%cal Bf6d5,Bd5e7,Be7f5][%mdl 32]} 18. Qe2 {[%emt 0:00:33]} Qd6 {[%emt 0:00:54]} 19. Bd3 {[%emt 0:00:29]} Bf6 {[%emt 0:00:26]} 20. Rxc8 {[%emt 0:00:33]} ({Reject} 20. Qh5 g6 21. Qf3 Bxe5 22. dxe5 Qxe5 $17) 20... Bxc8 {[%emt 0:00:14]} 21. Bd2 {[%emt 0:00:48][%cal Oh3h4]} Ne7 {[%emt 0:01:21]} 22. Qe4 {[%emt 0:01:38][%csl Gd3][%cal Re4h7] [#]} g6 {[%emt 0:01:11]} 23. Rc1 $40 {[%emt 0:00:58][%mdl 128] White attacks.} (23. Bh6 $14) 23... Nf5 {[%emt 0:00:38]} 24. Qa8 {[%emt 0:00:48]} Bd7 {[%emt 0:01:04]} (24... Bxe5 $2 25. dxe5 Qd5 26. Qxd5 (26. Rxc8 Qxa8 27. Rxa8 Rxa8 $15) 26... exd5 27. Bxb4 $18) 25. Qxa6 {[%emt 0:00:09] 0x0.001ebad28931dp-1022s more active pieces.} Qxa6 {[%emt 0:00:06]} 26. Bxa6 {[%emt 0:00:00]} Bxa4 {[%emt 0:00:01] [#]} 27. Ra1 $1 {[%emt 0:01:18]} ({Of course not} 27. Bxb4 $6 Ra8 $11) 27... Bxe5 {[%emt 0:01:49]} 28. dxe5 {[%emt 0:00:00]} Bc6 {[%emt 0:00:10]} 29. Bxb4 {[%emt 0:00:09] This bishop pair is nice.} Rd8 {[%emt 0:00:16]} 30. Bc3 {[%emt 0:00:21]} g5 {[%emt 0:00:15]} 31. b4 {[%emt 0:00:31][%cal Bb2b4,Bb4b5][%mdl 32]} Bd5 {[%emt 0:00:42]} (31... Nd4 $16 {might work better.} 32. f3 Nb5) 32. Bf1 {[%emt 0:00:30] White is clearly better.} Rc8 {[%emt 0:00:02]} 33. Rc1 {[%emt 0:00:14]} h6 {[%emt 0:00:35]} 34. b5 {[%emt 0:00:14]} Ne7 {[%emt 0:00:16]} 35. Bd2 {[%emt 0:00:34]} Rb8 {[%emt 0:01:02]} 36. Bb4 {[%emt 0:00:11] Weighted Error Value: White=0.09 (flawless) /Black=0.15 (very precise)} 1-0

[Event "FTX Crypto Cup MCCT 2022"]
[Site "Miami"]
[Date "2022.08.11"]
[Round "5.4"]
[White "Carlsen, Magnus"]
[Black "Duda, Jan-Krzysztof"]
[Result "1-0"]
[ECO "D02"]
[WhiteElo "2864"]
[BlackElo "2750"]
[Annotator "TA"]
[PlyCount "127"]
[EventDate "2022.08.10"]
[EventType "tourn"]
[EventCountry "USA"]
[SourceTitle "playchess.com"]
[Source "ChessBase"]
[SourceQuality "1"]
[TimeControl "900+10"]

{[%evp 9,127,17,10,11,14,9,1,0,12,-7,-3,-3,0,-10,-8,-6,0,-31,10,3,6,15,16,0,0,0,5,6,18,14,27,19,17,13,18,20,19,22,46,46,46,46,46,46,46,46,42,6,37,22,37,16,22,22,23,0,0,0,0,0,0,0,0,0,0,0,24,23,26,15,17,17,14,14,18,10,46,50,56,54,140,140,140,140,140,140,140,135,140,138,121,77,85,8,8,0,94,89,92,33,47,53,56,0,726,722,732,732,818,720,671,576,2017,1826,2070,1762,1133,415,1935,1756]} 1. d4 {[%emt 0:00:00]} Nf6 {[%emt 0:00:00]} 2. Nf3 {[%emt 0:00:06]} d5 {[%emt 0:00:03]} 3. a3 {[%emt 0:00:01]} a6 {[%emt 0:00:30]} 4. Bf4 {[%emt 0:00:27]} Bf5 {[%emt 0:00:50]} 5. e3 {[%emt 0:00:03]} e6 {[%emt 0:00:01]} 6. c4 {[%emt 0:00:05] D02: 1 d4 d5 2 Nf3 sidelines, including 2...Nf6 3 g3 and 2...Nf6 3 Bf4.} Bd6 {[%emt 0:00:15] [#]} 7. Bg5 $146 {[%emt 0:00:24][%cal Bf4g5,Bg5h4,Bh4g3][%mdl 32]} ({Predecessor:} 7. Bg3 O-O 8. Nc3 c5 9. cxd5 exd5 10. dxc5 Bxc5 11. Be5 Nbd7 12. Bd4 Be6 13. Bd3 {½-½ (46) Nusrat Jahan,A (1712)-Taspia,T (1328) Dhaka 2021}) 7... Nbd7 {[%emt 0:00:07]} 8. Nc3 {[%emt 0:01:30] The position is equal.} c6 {[%emt 0:00:06]} 9. Be2 {[%emt 0:00:13]} h6 {[%emt 0:00:06]} 10. Bh4 {[%emt 0:00:02]} O-O {[%emt 0:00:04]} 11. O-O {[%emt 0:00:04]} Re8 {[%emt 0:00:14]} 12. b4 {[%emt 0:00:22]} Qb8 {[%emt 0:02:24]} 13. Bg3 {[%emt 0:00:53]} Ne4 {[%emt 0:00:15]} 14. Nxe4 {[%emt 0:00:03]} Bxe4 {[%emt 0:00:00]} 15. Nd2 {[%emt 0:00:02]} Bg6 {[%emt 0:00:14]} 16. Nb3 {[%emt 0:00:58]} Bxg3 {[%emt 0:00:51]} 17. hxg3 {[%emt 0:00:00]} Nf6 {[%emt 0:00:56]} 18. Rc1 {[%emt 0:00:06]} Re7 {[%emt 0:02:40]} 19. a4 {[%emt 0:00:24]} e5 {[%emt 0:01:09]} 20. dxe5 {[%emt 0:00:02]} Qxe5 {[%emt 0:00:02]} 21. Qd4 {[%emt 0:00:26]} Qxd4 {[%emt 0:01:00]} 22. Nxd4 {[%emt 0:00:04]} dxc4 {[%emt 0:00:01]} 23. Rxc4 {[%emt 0:02:37]} Be4 {[%emt 0:00:03]} 24. f3 {[%emt 0:01:04]} Bd5 {[%emt 0:00:03]} 25. Rc3 {[%emt 0:00:01]} Rae8 {[%emt 0:00:03]} 26. Kf2 {[%emt 0:01:00]} ({Don't play} 26. e4 Nxe4 $1 {[%mdl 512]} 27. fxe4 Rxe4 $17) 26... h5 {[%emt 0:00:06]} 27. Rd1 {[%emt 0:00:10][%cal Bf1d1,Bd1d4,Bd4e4][%mdl 32]} g6 {[%emt 0:00:03]} 28. Nc2 {[%emt 0:00:16]} Kg7 {[%emt 0:00:14]} 29. Rd4 {[%emt 0:00:07]} Kf8 {[%emt 0:00:59]} 30. a5 {[%emt 0:00:13]} Nd7 {[%emt 0:00:49]} 31. e4 {[%emt 0:00:29][%cal Oe2a6]} Be6 {[%emt 0:00:41]} 32. Ne1 {[%emt 0:00:25]} f5 {[%emt 0:00:14][%cal Oe6d5]} 33. Bd3 {[%emt 0:00:51]} fxe4 {[%emt 0:00:25]} 34. Rxe4 {[%emt 0:00:58]} Nf6 {[%emt 0:00:02]} 35. Re2 {[%emt 0:00:09]} Nd5 {[%emt 0:00:09][%csl LRb4,LRc3]} 36. Rc4 {[%emt 0:00:08]} Bf7 {[%emt 0:00:13]} 37. Rxe7 {[%emt 0:01:00]} Rxe7 {[%emt 0:00:00]} 38. Be4 {[%emt 0:00:25]} Nc7 {[%emt 0:01:39]} 39. Rc2 {[%emt 0:00:28]} Kg7 {[%emt 0:00:52]} 40. Nd3 {[%emt 0:00:03]} Kf6 {[%emt 0:00:01]} 41. Rd2 {[%emt 0:01:10]} Ne6 {[%emt 0:00:36]} 42. Ke3 {[%emt 0:00:13]} Rc7 {[%emt 0:00:21]} 43. f4 {[%emt 0:00:37]} Be8 {[%emt 0:01:13]} 44. Ne5 {[%emt 0:01:21]} g5 {[%emt 0:00:02]} (44... Rc8 $14) 45. Rd6 $16 {[%emt 0:00:45][%cal Of4f5]} Ke7 {[%emt 0:00:03]} 46. Nc4 {[%emt 0:00:01] White is much more active.} Rd7 {[%emt 0:00:47]} 47. Rxd7+ {[%emt 0:00:02]} Bxd7 {[%emt 0:00:00][%mdl 4096] Endgame KBN-KBN} 48. Ne5 {[%emt 0:00:14]} Be8 {[%emt 0:00:41] [#]} 49. Nd3 $1 {[%emt 0:00:12]} Kd6 {[%emt 0:00:03]} 50. f5 {[%emt 0:00:10]} Nc7 {[%emt 0:00:12]} 51. Nc5 {[%emt 0:00:03]} (51. g4 $16) 51... Ke5 $11 {[%emt 0:00:08]} 52. Nd3+ {[%emt 0:00:34]} (52. Nxb7 $11 Nd5+ 53. Kd3) 52... Kd6 $16 {[%emt 0:00:00]} 53. Bf3 {[%emt 0:00:08]} Bf7 {[%emt 0:00:16]} 54. Nc5 {[%emt 0:00:27]} (54. g4 $16 hxg4 55. Bxg4) 54... Ke5 $14 {[%emt 0:00:08]} 55. Nxb7 {[%emt 0:00:06]} Nd5+ {[%emt 0:00:17]} 56. Bxd5 {[%emt 0:00:02]} (56. Kd2 $1 $14) 56... Bxd5 $4 {[%emt 0:00:00][%mdl 8192] KB-KN} (56... cxd5 $11 57. f6 d4+ 58. Kf2 (58. Kd3 Be8 $11) 58... Kxf6) 57. Nc5 $18 {[%emt 0:00:09]} Bc4 {[%emt 0:00:10]} 58. Ne4 {[%emt 0:00:02]} Bf1 {[%emt 0:00:23]} 59. f6 {[%emt 0:00:06][%cal Bf5f6,Bf6f7][%mdl 32] Threatens to win with f7.} Ke6 {[%emt 0:00:02]} 60. Kf2 {[%emt 0:00:04]} Bc4 {[%emt 0:00:07]} 61. f7 {[%emt 0:00:03]} Ke7 {[%emt 0:00:15]} 62. Nxg5 {[%emt 0:00:01]} Bd5 {[%emt 0:00:02]} 63. g4 {[%emt 0:00:07]} (63. Ke3 $142 Kf8 64. Kd4) 63... hxg4 {[%emt 0:01:26]} (63... h4 $142 64. Nf3 Kxf7 65. Nxh4 Kf6) 64. Kg3 {[%emt 0:00:01] Weighted Error Value: White=0.16 (very precise) /Black=0.08 (flawless)} 1-0

[Event "FTX Crypto Cup MCCT 2022"]
[Site "Miami"]
[Date "2022.08.11"]
[Round "5.5"]
[White "Carlsen, Magnus"]
[Black "Duda, Jan-Krzysztof"]
[Result "0-1"]
[ECO "A01"]
[WhiteElo "2864"]
[BlackElo "2750"]
[Annotator "TA"]
[PlyCount "86"]
[EventDate "2022.08.10"]
[EventType "tourn"]
[EventCountry "USA"]
[SourceTitle "playchess.com"]
[Source "ChessBase"]
[SourceQuality "1"]
[TimeControl "300+3"]

{[%evp 9,86,-58,-29,-24,0,0,0,7,10,-4,-8,0,13,4,29,36,49,42,57,32,54,25,19,13,16,15,34,14,46,25,27,25,16,0,62,55,64,54,54,58,82,85,80,57,74,74,89,77,85,90,124,98,314,11,12,22,36,-306,-310,-380,0,0,0,-433,-363,-475,-467,-1069,-1035,-29983,-6398,-6398,-1134,-1187,-1175,-29996,-29997,-29997,-296]} 1. b3 {[%emt 0:00:00]} Nf6 {[%emt 0:00:00]} 2. Bb2 {[%emt 0:00:06]} d5 {[%emt 0:00:01]} 3. e3 {[%emt 0:00:27]} Bf5 {[%emt 0:00:03]} 4. Bxf6 {[%emt 0:00:25]} gxf6 {[%emt 0:00:23] [#]} 5. g3 $146 {[%emt 0:00:03]} ({Predecessor:} 5. d4 c5 6. Bd3 Bxd3 7. Qxd3 Nc6 8. c3 e5 9. Ne2 Qd7 10. Ng3 e4 11. Qe2 cxd4 12. exd4 {1-0 (65) Schreiner,P (2433)-Raber,F (2149) Aschach 2014}) 5... e6 {[%emt 0:00:01]} 6. Bg2 {[%emt 0:00:03] A01: Nimzowitsch-Larsen Opening.} c6 {[%emt 0:00:09]} 7. Nf3 {[%emt 0:00:03]} Nd7 {[%emt 0:00:02]} 8. O-O {[%emt 0:00:02] The position is equal.} Bg6 {[%emt 0:00:22]} 9. Nh4 {[%emt 0:00:06]} Be7 {[%emt 0:00:04]} 10. d4 {[%emt 0:00:21]} h5 {[%emt 0:00:17]} 11. Nd2 {[%emt 0:00:12]} f5 {[%emt 0:00:08]} 12. Ndf3 {[%emt 0:00:02]} O-O {[%emt 0:00:06]} 13. c4 {[%emt 0:00:05]} a5 {[%emt 0:00:04]} 14. Bh3 {[%emt 0:00:02]} Kg7 {[%emt 0:00:11]} 15. a3 {[%emt 0:00:25]} Nf6 {[%emt 0:00:02]} 16. Qc2 {[%emt 0:00:16]} Ne4 {[%emt 0:00:03]} 17. Rfc1 {[%emt 0:00:03]} Bh7 {[%emt 0:00:53][%cal Of5f4]} 18. Qb2 {[%emt 0:00:22]} b5 {[%emt 0:00:13]} 19. cxd5 {[%emt 0:00:23]} cxd5 {[%emt 0:00:01]} 20. Ng2 {[%emt 0:00:01]} Rh8 {[%emt 0:00:53]} 21. Rc6 {[%emt 0:00:25]} Bg8 {[%emt 0:00:15]} (21... Qe8 $11 22. Rcc1 Bd6) 22. Nf4 $14 {[%emt 0:00:16]} h4 {[%emt 0:00:05]} 23. g4 {[%emt 0:00:05]} fxg4 {[%emt 0:00:05]} 24. Bxg4 {[%emt 0:00:02]} Bd6 {[%emt 0:00:07]} 25. Ne5 $1 {[%emt 0:00:13] Pair of Knights!} Rh6 {[%emt 0:01:05]} 26. f3 {[%emt 0:00:03]} Ng5 {[%emt 0:00:07]} 27. Kh1 {[%emt 0:00:07]} f6 {[%emt 0:00:07] [#]} 28. Rg1 $1 {[%emt 0:00:50][%cal Og4e6] Strongly threatening Bxe6!} fxe5 {[%emt 0:00:10]} 29. dxe5 {[%emt 0:00:01]} Be7 {[%emt 0:00:01]} 30. Bxe6 $1 {[%emt 0:00:31] Black must now prevent Qc2.} Kf8 $2 {[%emt 0:00:20]} (30... Kh8 $16 {keeps fighting.} 31. Bxd5 Rxc6 32. Bxc6 Rc8) 31. Bxg8 $2 {[%emt 0:00:19]} Rxc6 $11 {[%emt 0:00:03] Chess con chili.} 32. Bxd5 {[%emt 0:00:00]} Rac8 {[%emt 0:00:02]} 33. Qb1 {[%emt 0:00:03][%mdl 8192]} (33. Bxc6 $14 {keeps the upper hand.} Rxc6 34. b4) 33... Rc2 $19 {[%emt 0:00:05][%cal Od8d5] ...Qxd5! is the strong threat.} 34. Qd1 {[%emt 0:00:07] Hoping for Qd3.} Ke8 $2 {[%emt 0:00:06]} (34... R8c3 $19 {Threatens to win with ...Qb6.} 35. Qd4 Rc1) 35. Qd3 $11 {[%emt 0:00:02]} Qb6 {[%emt 0:00:02] Against Ne6} 36. Be4 $2 {[%emt 0:00:11][%mdl 8192]} (36. Be6 $11 {and White stays safe.} Qc6 37. Bd5 (37. Qg6+ Kd8 $11)) 36... Rc1 {[%emt 0:00:05]} 37. Bg6+ {[%emt 0:00:05]} Kf8 {[%emt 0:00:01] aiming for ...R8c3.} 38. Qf5+ {[%emt 0:00:03]} (38. Rxc1 $142 Rxc1+ 39. Kg2) 38... Kg7 $19 {[%emt 0:00:01]} 39. Nd5 {[%emt 0:00:02]} Rxg1+ {[%emt 0:00:08]} (39... Qc5 $142 40. Qd3 Rxg1+ 41. Kxg1 Qc1+ 42. Qf1 Qd2 $1 43. Bd3 Rc1 44. Qxc1 Qxc1+ 45. Kf2 Qd2+ 46. Be2 Qxd5 47. f4 Nh3+ 48. Ke1 Qxb3 49. f5 Qc3+ 50. Kf1 Qxe3 51. Ke1 Bxa3 52. f6+ Kh8 53. f7 Bb4+ 54. Kf1 Qg1#) 40. Kxg1 {[%emt 0:00:00]} Rc1+ {[%emt 0:00:01]} (40... Qc5 $142 41. Qc2 {[#]} Qxd5 $1) 41. Kf2 {[%emt 0:00:02]} Qxg6 {[%emt 0:00:02]} 42. Nxe7 {[%emt 0:00:00] [#]} Nh3+ $1 {[%emt 0:00:06][%mdl 512]} 43. Ke2 {[%emt 0:00:06]} Qg2+ {[%emt 0:00:03] Weighted Error Value: White=1.00/Black=0.68} 0-1

[Event "FTX Crypto Cup MCCT 2022"]
[Site "Miami"]
[Date "2022.08.11"]
[Round "5.6"]
[White "Duda, Jan-Krzysztof"]
[Black "Carlsen, Magnus"]
[Result "1-0"]
[ECO "A45"]
[WhiteElo "2750"]
[BlackElo "2864"]
[Annotator "TA"]
[PlyCount "105"]
[EventDate "2022.08.10"]
[EventType "tourn"]
[EventCountry "USA"]
[SourceTitle "playchess.com"]
[Source "ChessBase"]
[SourceQuality "1"]
[TimeControl "300+3"]

{[%evp 9,105,17,39,13,14,11,14,8,17,0,18,0,13,2,2,1,5,6,7,0,36,23,25,20,32,36,10,0,31,20,71,67,84,79,81,97,74,29,62,59,59,45,37,41,37,18,18,18,18,11,10,-8,-11,-151,-152,-263,-266,-290,-258,-340,-212,-447,-425,-529,-527,-683,-682,-632,0,0,0,0,0,0,116,-5,0,-178,-191,-153,-191,-300,-263,-366,-187,-145,-177,-147,0,0,0,0,0,0,1081,1077,1298,1031]} 1. d4 {[%emt 0:00:00]} Nf6 {[%emt 0:00:00]} 2. Bg5 {[%emt 0:00:02]} e6 {[%emt 0:00:20]} 3. e4 {[%emt 0:00:01]} h6 {[%emt 0:00:02]} 4. Bxf6 {[%emt 0:00:01]} Qxf6 {[%emt 0:00:01]} 5. c3 {[%emt 0:00:00]} e5 {[%emt 0:00:26]} 6. Nf3 {[%emt 0:00:09] A45: Trompowsky Attack.} d6 {[%emt 0:00:02]} 7. Nbd2 {[%emt 0:00:15]} Nd7 {[%emt 0:00:02] [#]} 8. g3 $146 {[%emt 0:00:07] The position is equal.} ({Predecessor:} 8. a4 g6 9. a5 Bg7 10. a6 O-O 11. axb7 Bxb7 12. Ba6 Rab8 13. Bd3 d5 14. exd5 exd4 {1-0 (28) Bernadskiy,V (2587)-Nozdrachev,L (2354) Chess.com INT 2021}) 8... Nb6 {[%emt 0:01:01]} 9. Bg2 {[%emt 0:00:05]} Be7 {[%emt 0:00:02]} 10. O-O {[%emt 0:00:11]} O-O {[%emt 0:00:02]} 11. a4 {[%emt 0:00:03]} a5 {[%emt 0:00:02]} 12. Re1 {[%emt 0:00:01]} Re8 {[%emt 0:00:01]} 13. Nf1 {[%emt 0:00:03]} Bf8 {[%emt 0:00:05]} 14. Ne3 {[%emt 0:00:00]} exd4 {[%emt 0:00:16]} 15. Nxd4 {[%emt 0:00:00]} c6 {[%emt 0:00:02]} 16. f4 {[%emt 0:00:03]} g6 {[%emt 0:00:08]} 17. h4 {[%emt 0:00:06]} h5 {[%emt 0:00:04]} 18. Kh2 {[%emt 0:00:14]} Bg7 {[%emt 0:00:04]} 19. Qc2 {[%emt 0:00:16]} Qd8 {[%emt 0:00:45]} (19... Qe7 $11) 20. Rad1 {[%emt 0:00:07]} Qc7 {[%emt 0:00:08]} 21. Nf3 {[%emt 0:00:10]} (21. f5 {seems wilder.} Bf6 22. Rf1 Be5 23. fxg6 fxg6 24. Nf3) 21... Nd7 {[%emt 0:00:07]} 22. Nc4 {[%emt 0:00:09][%cal Be3c4,Bc4d2,Bd2e4,Be4g5][%mdl 32]} Bf8 {[%emt 0:00:01]} 23. Bh3 {[%emt 0:01:33] White is much more active.} Nc5 {[%emt 0:00:13][%cal Oe8e4]} 24. Bxc8 {[%emt 0:00:02]} (24. Ng5 {with more complications.} Bxh3 25. Kxh3 f6 26. Nf3) 24... Raxc8 {[%emt 0:00:01]} 25. e5 {[%emt 0:00:03][%cal Re5d6]} d5 {[%emt 0:00:29]} 26. Ncd2 {[%emt 0:00:01]} Qd7 {[%emt 0:00:49] Prevents f5.} 27. b4 {[%emt 0:00:24]} axb4 {[%emt 0:00:05]} 28. cxb4 {[%emt 0:00:00]} Na6 {[%emt 0:00:24] [#]} 29. Ne4 $1 {[%emt 0:00:01]} Be7 {[%emt 0:00:10] Strongly threatening ...Qg4.} 30. Neg5 {[%emt 0:01:13]} Nxb4 {[%emt 0:00:04]} 31. Qb2 {[%emt 0:00:02]} (31. Qb1 $1 $11 Qf5 32. Qxf5 gxf5 33. Nd4) 31... Qg4 $1 $17 {[%emt 0:00:07]} 32. Rf1 {[%emt 0:00:16]} (32. f5 $17 Qxf5 33. e6) 32... c5 $1 $19 {[%emt 0:00:03]} 33. Rd2 {[%emt 0:00:43]} Qf5 {[%emt 0:00:04]} 34. Re2 {[%emt 0:00:07]} d4 {[%emt 0:00:03]} 35. e6 $2 {[%emt 0:00:05]} (35. Nd2) 35... f6 {[%emt 0:00:03]} 36. Nf7 {[%emt 0:00:01]} Kg7 {[%emt 0:00:12] Against Nh6} 37. Qd2 {[%emt 0:00:11]} d3 {[%emt 0:00:06]} 38. Ree1 {[%emt 0:00:04]} c4 $2 {[%emt 0:00:01]} (38... Ra8 $19 39. N3g5 Rxa4) 39. Nd4 $11 {[%emt 0:00:02]} Qd5 {[%emt 0:00:01]} 40. f5 {[%emt 0:00:00] White wants to mate with Qh6+.} Rh8 {[%emt 0:00:02] Inhibits Qh6+.} 41. Qf4 {[%emt 0:00:05] Threatens to win with fxg6.} Nc6 {[%emt 0:00:06]} (41... d2 $1 $11 {remains equal.} 42. Qxd2 c3) 42. Nb5 {[%emt 0:00:07] Dancing on a razor blade. Pair of Knights!} ({Worse is} 42. Nxh8 Nxd4 43. Nxg6 Bd6 $19) (42. Nxc6 $16 Qxc6 43. Nxh8 Rxh8 44. Re4) 42... Qxf5 {[%emt 0:00:15]} 43. Qxf5 {[%emt 0:00:04]} (43. Nxh8 $11 Rxh8 44. Qxc4) 43... gxf5 $19 {[%emt 0:00:00]} 44. Nxh8 {[%emt 0:00:01]} Rxh8 {[%emt 0:00:02]} 45. Rxf5 {[%emt 0:00:00]} (45. Rb1 {might work better.} d2 46. Rf4) 45... Rd8 {[%emt 0:00:01] And now ...Kg6 would win.} 46. Rb1 {[%emt 0:00:06]} Kg6 {[%emt 0:00:06]} (46... d2 $142 47. Rd1 Bb4) 47. Rf4 {[%emt 0:00:02] [#]} Ne5 {[%emt 0:00:02] aiming for ...d2.} 48. Nc3 {[%emt 0:00:01] [#]} d2 {[%emt 0:00:01]} ({Black should play} 48... Rd6 $1 $17 49. Rxb7 Rxe6) 49. Rxb7 $11 {[%emt 0:00:01]} Rd3 {[%emt 0:00:03]} 50. Nd1 {[%emt 0:00:04]} ({Not} 50. Rf1 $2 Rxc3 51. Rd1 Ng4+ 52. Kg2 Ne3+ 53. Kf3 Nxd1+ $19) 50... c3 {[%emt 0:00:06] ( -> ...c2)} 51. Rc7 {[%emt 0:00:01]} Bb4 {[%emt 0:00:04][%mdl 8192]} 52. Rxb4 $18 {[%emt 0:00:01] e7 would kill now.} Nf3+ {[%emt 0:00:07]} 53. Kh1 {[%emt 0:00:03] Weighted Error Value: White=0.44/Black=0.27 (precise)} 1-0

[Event "FTX Crypto Cup MCCT 2022"]
[Site "Miami"]
[Date "2022.08.11"]
[Round "6.1"]
[White "Firouzja, Alireza"]
[Black "Carlsen, Magnus"]
[Result "1-0"]
[ECO "B11"]
[WhiteElo "2793"]
[BlackElo "2864"]
[Annotator "TA"]
[PlyCount "71"]
[EventDate "2022.08.10"]
[EventType "tourn"]
[EventCountry "USA"]
[SourceTitle "playchess.com"]
[Source "ChessBase"]
[SourceQuality "1"]
[TimeControl "900+10"]

{[%evp 9,71,31,28,41,44,43,36,28,32,19,20,22,71,11,18,0,22,16,67,43,55,47,227,215,218,210,220,154,168,100,98,95,236,227,220,220,703,691,695,673,678,675,663,645,643,555,610,616,600,475,462,472,464,456,471,443,744,712,707,697,616,497,957,915]} 1. e4 {[%emt 0:00:00]} c6 {[%emt 0:00:00]} 2. Nf3 {[%emt 0:00:20]} d5 {[%emt 0:00:03]} 3. Nc3 {[%emt 0:00:01][%cal Bb1c3,Bc3e4,Be4g3][%mdl 32]} Qa5 {[%emt 0:00:02]} 4. Be2 {[%emt 0:01:17]} dxe4 {[%emt 0:00:04]} 5. Nxe4 {[%emt 0:00:02]} Bf5 {[%emt 0:00:01]} 6. Ng3 {[%emt 0:00:05] B11: Caro-Kann: Two Knights Variation.} Bg6 {[%emt 0:00:02]} 7. O-O {[%emt 0:00:28]} Nd7 {[%emt 0:00:07]} 8. d4 {[%emt 0:00:25] White is slightly better.} e6 {[%emt 0:00:13] [#]} 9. Nh4 $146 {[%emt 0:00:39]} ({Predecessor:} 9. Bf4 Ngf6 10. c4 Be7 11. a3 O-O 12. b4 Qd8 13. Qb3 Nh5 14. Nxh5 Bxh5 15. Rfe1 {0-1 (60) Kollars,D (2564)-Admiraal,M (2508) Chess.com INT 2019}) 9... Bd6 {[%emt 0:02:39]} 10. c4 {[%emt 0:00:43][%cal Bc2c4,Bc4d5][%mdl 32]} Qd8 {[%emt 0:00:41] [#]} (10... Qc7 $11) 11. Nxg6 {[%emt 0:01:36]} ({Better is} 11. d5 $1 $16 {[%cal Rd5c6] Strongly threatening dxc6!} Qxh4 12. dxc6) 11... hxg6 $11 {[%emt 0:00:03]} 12. d5 {[%emt 0:00:12]} Qh4 {[%emt 0:04:44][%csl Gh8][%cal Rh4h2]} 13. h3 {[%emt 0:00:03]} exd5 {[%emt 0:00:21]} ({Black should play} 13... cxd5 $11 14. cxd5 e5) 14. cxd5 $14 {[%emt 0:00:04]} c5 {[%emt 0:00:01]} 15. a4 {[%emt 0:03:06]} a5 $2 {[%emt 0:04:09]} (15... Ngf6 $14) 16. Bb5 $18 {[%emt 0:00:42]} Ngf6 {[%emt 0:00:24]} 17. Re1+ {[%emt 0:00:09]} Kd8 {[%emt 0:00:04]} 18. Ra3 {[%emt 0:00:21][%cal Ba1a3,Ba3c3,Bc3c4,Bc4h4][%mdl 32] aiming for Rae3.} Re8 {[%emt 0:00:20]} 19. Rxe8+ {[%emt 0:00:16]} (19. Be3 $18) 19... Kxe8 $16 {[%emt 0:00:08]} 20. Rc3 {[%emt 0:00:33] Rc4 is the strong threat.} Kd8 {[%emt 0:00:48]} (20... Qd4 $16 {is a better defense.} 21. Rd3 Qh4) 21. Rc4 $18 {[%emt 0:00:04]} Qh8 {[%emt 0:00:02] [#]} 22. Bg5 $1 {[%emt 0:01:11]} Nb6 $2 {[%emt 0:00:14]} (22... Kc7 23. Bxd7 Kxd7) 23. Rh4 {[%emt 0:00:15] White is clearly winning.} Qf8 {[%emt 0:00:24]} 24. Ne4 {[%emt 0:00:01]} Kc8 {[%emt 0:00:49]} 25. Nxf6 {[%emt 0:01:38]} gxf6 {[%emt 0:00:01]} 26. Bxf6 {[%emt 0:00:00] Hoping for Rh8. A strong pair of Bishops.} Kc7 {[%emt 0:00:01]} 27. Qd2 {[%emt 0:02:03]} Qc8 {[%emt 0:01:05]} 28. Rh7 {[%emt 0:00:02]} Qg8 {[%emt 0:00:09]} 29. Rh8 {[%emt 0:00:19]} Qxh8 {[%emt 0:00:01]} 30. Bxh8 {[%emt 0:00:00]} Rxh8 {[%emt 0:00:01]} 31. Qxa5 {[%emt 0:00:00]} Rh4 {[%emt 0:00:01]} 32. Qe1 {[%emt 0:00:31] Against Re4} Nd7 {[%emt 0:01:07]} (32... Rh8 $142 33. Qe4 Rd8) 33. g3 {[%emt 0:00:42]} Rh8 {[%emt 0:00:30] Against Qe8} 34. Qa5+ {[%emt 0:00:13]} Nb6 {[%emt 0:00:02]} 35. Qc3 {[%emt 0:00:02]} Rxh3 {[%emt 0:00:10]} (35... Rf8 $142 36. Qb3 Ra8) 36. Qg7 {[%emt 0:00:08] Weighted Error Value: White=0.21 (precise) /Black=0.33} 1-0